fUST/lending_fUST_20240327
["ID","MTS","AMOUNT","RATE_DAILY","PERIOD"]
[320701688,1711518406563,-587.44,0.00019178,2]
[320701689,1711518406586,-500.0,0.00019178,2]
[320701690,1711518406610,-500.0,0.00019178,2]
[320701691,1711518406633,-500.0,0.00019178,2]
[320701692,1711518406656,-500.0,0.00019178,2]
[320701693,1711518406681,-500.0,0.00019178,2]
[320701694,1711518406705,-400.0,0.00019178,2]
[320701695,1711518406727,-1551.68,0.00019178,2]
[320701696,1711518406751,-458.66840913,0.00019178,2]
[320701697,1711518406774,-500.0,0.00019178,2]
[320701698,1711518406798,-431.48773264,0.00019178,2]
[320701699,1711518406820,-500.0,0.00019178,2]
[320701700,1711518406842,-500.0,0.00019178,2]
[320701701,1711518406863,-500.0,0.00019178,2]
[320701702,1711518406884,-500.0,0.00019178,2]
[320701703,1711518406906,-611.15342161,0.00019178,2]
[320701704,1711518406929,-500.0,0.00019178,2]
[320701705,1711518406951,-500.0,0.00019178,2]
[320701706,1711518406972,-500.0,0.00019178,2]
[320701707,1711518406994,-1841.66,0.00019178,2]
[320701708,1711518407017,-500.0,0.00019178,2]
[320701709,1711518407039,-500.0,0.00019178,2]
[320701710,1711518407062,-3934.15,0.00019178,2]
[320701711,1711518407087,-500.0,0.00019178,2]
[320701712,1711518407110,-610.85,0.00019178,2]
[320701713,1711518407134,-500.0,0.00019178,2]
[320701714,1711518407158,-954.33,0.00019178,2]
[320701715,1711518407183,-500.0,0.00019178,2]
[320701716,1711518407205,-965.35,0.00019178,2]
[320701717,1711518407229,-500.0,0.00019178,2]
[320701718,1711518407252,-1483.92,0.00019178,2]
[320701719,1711518407275,-535.12,0.00019178,2]
[320701720,1711518407300,-500.0,0.00019178,2]
[320701721,1711518407323,-1015.19,0.00019178,2]
[320701722,1711518407349,-500.0,0.00019178,2]
[320701723,1711518407374,-500.0,0.00019178,2]
[320701724,1711518407398,-500.0,0.00019178,2]
[320701725,1711518407420,-500.0,0.00019178,2]
[320701726,1711518407442,-500.0,0.00019178,2]
[320701727,1711518407466,-703.66,0.00019178,2]
[320701728,1711518407490,-500.0,0.00019178,2]
[320701729,1711518407512,-500.0,0.00019178,2]
[320701730,1711518407536,-4061.51,0.00019178,2]
[320701731,1711518407559,-243.94988632,0.00019178,2]
[320701732,1711518435427,-928.09696378,0.00018218,2]
[320701734,1711518507506,500.0,0.00018218,2]
[320701735,1711518520459,500.0,0.00018218,2]
[320701767,1711518632142,-155.60836958,0.00019,2]
[320701768,1711518632152,-912.49055156,0.00019075,2]
[320701769,1711518632165,-7909.53319986,0.00019078,2]
[320701771,1711518632175,-1610.35282495,0.00019174,2]
[320701773,1711518632185,-344.91799141,0.00019175,2]
[320701775,1711518632196,-29753.27805314,0.00019176,2]
[320701777,1711518632206,-892.61339597,0.00019176,2]
[320701778,1711518632216,-790.27479644,0.00019177,2]
[320701780,1711518632226,-2605.93322634,0.00019177,2]
[320701782,1711518632237,-12138.91476274,0.00019177,2]
[320701784,1711518632249,-500.0,0.00019178,2]
[320701786,1711518632259,-500.0,0.00019178,2]
[320701788,1711518632270,-500.0,0.00019178,2]
[320701789,1711518632280,-520.38402693,0.00019178,2]
[320701790,1711518632290,-500.0,0.00019178,2]
[320701791,1711518632300,-500.0,0.00019178,2]
[320701792,1711518632310,-500.816058,0.00019178,2]
[320701793,1711518632319,-500.0,0.00019178,2]
[320701794,1711518632329,-508.25,0.00019178,2]
[320701795,1711518632338,-500.0,0.00019178,2]
[320701796,1711518632347,-500.0,0.00019178,2]
[320701797,1711518632357,-418.32908891,0.00019178,2]
[320701798,1711518632366,-638.75598231,0.00019178,2]
[320701799,1711518632376,-500.0,0.00019178,2]
[320701800,1711518632384,-808.51,0.00019178,2]
[320701801,1711518632394,-500.0,0.00019178,2]
[320701802,1711518632403,-500.0,0.00019178,2]
[320701803,1711518632411,-56.3872914,0.00019178,2]
[320701932,1711518643389,-444.82476256,0.00019178,2]
[320701934,1711518643398,-500.0,0.00019178,2]
[320701936,1711518643408,-500.0,0.00019178,2]
[320701938,1711518643417,-500.0,0.00019178,2]
[320701940,1711518643426,-500.0,0.00019178,2]
[320701943,1711518643435,-500.0,0.00019178,2]
[320701944,1711518643444,-500.0,0.00019178,2]
[320701946,1711518643454,-500.36342998,0.00019178,2]
[320701947,1711518643464,-500.0,0.00019178,2]
[320701948,1711518643474,-494.14472014,0.00019178,2]
[320701949,1711518643483,-500.0,0.00019178,2]
[320701950,1711518643493,-500.0,0.00019178,2]
[320701951,1711518643502,-500.0,0.00019178,2]
[320701952,1711518643512,-1070.09,0.00019178,2]
[320701953,1711518643521,-500.0,0.00019178,2]
[320701954,1711518643530,-500.0,0.00019178,2]
[320701955,1711518643540,-557.2,0.00019178,2]
[320701956,1711518643549,-500.9606765,0.00019178,2]
[320701957,1711518643558,-666.59,0.00019178,2]
[320701959,1711518643568,-500.0,0.00019178,2]
[320701961,1711518643577,-500.0,0.00019178,2]
[320701962,1711518643587,-674.76,0.00019178,2]
[320701963,1711518643595,-512.55728518,0.00019178,2]
[320701964,1711518643605,-500.0,0.00019178,2]
[320701965,1711518643615,-2134.25,0.00019178,2]
[320701966,1711518643624,-500.0,0.00019178,2]
[320701967,1711518643634,-3770.22,0.00019178,2]
[320701968,1711518643643,-718.89,0.00019178,2]
[320701969,1711518643652,-501.02516356,0.00019178,2]
[320701970,1711518643662,-910.62,0.00019178,2]
[320701972,1711518643671,-500.0,0.00019178,2]
[320701973,1711518643681,-500.0,0.00019178,2]
[320701975,1711518643690,-500.0,0.00019178,2]
[320701976,1711518643699,-512.82,0.00019178,2]
[320701977,1711518643709,-500.0,0.00019178,2]
[320701978,1711518643719,-500.0,0.00019178,2]
[320701979,1711518643728,-500.0,0.00019178,2]
[320701980,1711518643737,-2001.21,0.00019178,2]
[320701981,1711518643747,-1641.75,0.00019178,2]
[320701982,1711518643756,-500.88328909,0.00019178,2]
[320701983,1711518643766,-500.0,0.00019178,2]
[320701984,1711518643775,-500.95887244,0.00019178,2]
[320701985,1711518643784,-500.0,0.00019178,2]
[320701986,1711518643793,-500.0,0.00019178,2]
[320701987,1711518643802,-500.0,0.00019178,2]
[320701988,1711518643812,-500.0,0.00019178,2]
[320701989,1711518643821,-22535.8,0.00019178,2]
[320701990,1711518643830,-278.88354815,0.00019178,2]
[320701991,1711518643840,-645.21,0.00019178,2]
[320701992,1711518643849,-500.0,0.00019178,2]
[320701993,1711518643859,-500.0,0.00019178,2]
[320701994,1711518643868,-500.0,0.00019178,2]
[320701995,1711518643878,-5092.79,0.00019178,2]
[320701996,1711518643888,-500.0,0.00019178,2]
[320701997,1711518643897,-3892.28,0.00019178,2]
[320701998,1711518643906,-500.0,0.00019178,2]
[320701999,1711518643915,-500.0,0.00019178,2]
[320702000,1711518643925,-1800.89,0.00019178,2]
[320702001,1711518643935,-1613.21,0.00019178,2]
[320702002,1711518643944,-17175.89246308,0.00019178,2]
[320702096,1711519832357,-937.96850983,0.00019078,2]
[320702098,1711519832367,-407.95165605,0.00019176,2]
[320702100,1711519832376,-2862.72313051,0.00019177,2]
[320702185,1711519843478,-1906.21490424,0.00019177,2]
[320702186,1711519843538,-554.57618376,0.00019177,2]
[320702344,1711521038679,-1910.40822086,0.00019,2]
[320702895,1711521044866,-11532.33030582,0.00019,2]
[320702897,1711521044875,-3155.38131424,0.00019,2]
[320703084,1711521046677,-3894.29450707,0.00019,2]
[320705841,1711521745601,-26133.0,0.00019,2]
[320705842,1711521825919,-3511.25418873,0.00018121,2]
[320705843,1711521825943,-920.79514438,0.00018122,2]
[320705844,1711521825966,-820.71676524,0.00018998,2]
[320705845,1711521825989,-1306.80449998,0.00018998,2]
[320705846,1711521826009,-1888.81529834,0.00018998,2]
[320705847,1711521826031,-2605.4070795,0.00018998,2]
[320705848,1711521826051,-363.15433015,0.00018998,2]
[320705849,1711521826073,-620.91903434,0.00018998,2]
[320705850,1711521826093,-2765.45505754,0.00018998,2]
[320705851,1711521826116,-537.88918387,0.00018999,2]
[320705852,1711521826138,-281.08704013,0.00018999,2]
[320705853,1711521826274,-294.57040885,0.00018999,2]
[320705854,1711521826296,-66833.39811434,0.00019,2]
[320705855,1711521826317,-488.16432576,0.00019,2]
[320705856,1711521826340,-500.0,0.00019,2]
[320705857,1711521826363,-1486.68126358,0.00019076,2]
[320705858,1711521826385,-161.64066428,0.00019076,2]
[320705859,1711521826405,-155.41814228,0.00019076,2]
[320705860,1711521826427,-3444.03044866,0.00019076,2]
[320705861,1711521826447,-435.45196325,0.00019076,2]
[320705862,1711521826469,-1956.79393674,0.00019076,2]
[320705863,1711521826490,-1610.48670662,0.00019076,2]
[320705864,1711521826511,-212.76409794,0.00019076,2]
[320705865,1711521826532,-180.86746589,0.00019076,2]
[320705866,1711521826553,-205.37769357,0.00019076,2]
[320705867,1711521826574,-750.37480784,0.00019077,2]
[320705868,1711521826594,-750.37480784,0.00019077,2]
[320705869,1711521826616,-750.37480784,0.00019078,2]
[320705870,1711521826641,-750.37480784,0.00019078,2]
[320705871,1711521826664,-750.37480784,0.00019078,2]
[320705872,1711521826684,-17184.55412695,0.00019177,2]
[320705873,1711521826706,-500.0,0.00019178,2]
[320705874,1711521826724,-483.23075257,0.00019178,2]
[320705875,1711521826744,-500.0,0.00019178,2]
[320705876,1711521826765,-496.26808458,0.00019178,2]
[320705877,1711521826785,-294.17027315,0.00019178,2]
[320705878,1711521826804,-500.0,0.00019178,2]
[320705879,1711521826826,-500.0,0.00019178,2]
[320705880,1711521826845,-500.0,0.00019178,2]
[320705881,1711521826865,-500.0,0.00019178,2]
[320705882,1711521826884,-500.0,0.00019178,2]
[320705883,1711521826904,-500.0,0.00019178,2]
[320705884,1711521826925,-500.0,0.00019178,2]
[320705885,1711521826945,-583.96130448,0.00019178,2]
[320705886,1711521826965,-500.0,0.00019178,2]
[320705887,1711521826985,-573.96331235,0.00019178,2]
[320705888,1711521827005,-555.51496434,0.00019178,2]
[320705889,1711521827026,-503.18160699,0.00019178,2]
[320705890,1711521827049,-500.0,0.00019178,2]
[320705891,1711521827069,-500.0,0.00019178,2]
[320705892,1711521827093,-500.0,0.00019178,2]
[320705893,1711521827113,-501.1652361,0.00019178,2]
[320705894,1711521827134,-500.0,0.00019178,2]
[320705895,1711521827156,-500.8216256,0.00019178,2]
[320705896,1711521827177,-500.0,0.00019178,2]
[320705897,1711521827197,-500.0,0.00019178,2]
[320705898,1711521827217,-500.0,0.00019178,2]
[320705899,1711521827239,-500.80494089,0.00019178,2]
[320705900,1711521827259,-500.8158679,0.00019178,2]
[320705901,1711521827279,-500.0,0.00019178,2]
[320705902,1711521827299,-500.0,0.00019178,2]
[320705903,1711521827318,-619.82,0.00019178,2]
[320705904,1711521827338,-501.04837617,0.00019178,2]
[320705905,1711521827361,-500.0,0.00019178,2]
[320705906,1711521827382,-500.0,0.00019178,2]
[320705907,1711521827402,-500.0,0.00019178,2]
[320705908,1711521827423,-500.0,0.00019178,2]
[320705909,1711521827443,-500.0,0.00019178,2]
[320705910,1711521827463,-774.83,0.00019178,2]
[320705911,1711521827483,-500.0,0.00019178,2]
[320705912,1711521827503,-1025.5,0.00019178,2]
[320705913,1711521827537,-500.0,0.00019178,2]
[320705914,1711521827565,-500.0,0.00019178,2]
[320705915,1711521827590,-500.0,0.00019178,2]
[320705916,1711521827619,-1917.83,0.00019178,2]
[320705917,1711521827645,-500.0,0.00019178,2]
[320705918,1711521827673,-500.0,0.00019178,2]
[320705919,1711521827700,-500.0,0.00019178,2]
[320705920,1711521827726,-638.81,0.00019178,2]
[320705921,1711521827749,-223.89263477,0.00019178,2]
[320705931,1711522211514,383.7159964,0.00017361,2]
[320705979,1711522238770,-192.20239395,0.00018157,2]
[320705981,1711522238798,-871.94604714,0.00018157,2]
[320706048,1711522240722,-499.36786946,0.00018157,2]
[320706094,1711522243871,-453.48316393,0.00018156,2]
[320706096,1711522243881,-107.8852432,0.00018157,2]
[320706097,1711522243893,-535.64874978,0.00018158,2]
[320706098,1711522243901,-620.91903434,0.00018158,2]
[320706099,1711522243911,-180.29988921,0.00018158,2]
[320706100,1711522243920,-648.71371915,0.00018159,2]
[320706101,1711522243933,-306.0,0.00018159,2]
[320706102,1711522243946,-2556.54046958,0.00018159,2]
[320706103,1711522243957,-1889.80488692,0.0001816,2]
[320706104,1711522243967,-4586.64582858,0.00018164,2]
[320706119,1711522247661,-48.82318104,0.00018164,2]
[320706125,1711522441201,-47399.42370001,0.00017999,2]
[320706126,1711522441226,-1889.80488692,0.00017999,2]
[320706127,1711522441246,-77644.77141307,0.00018,2]
[320706129,1711522473816,2287.39007788,0.000205,5]
[320706146,1711522652234,2323.1127093,0.00017877,2]
[320706281,1711523446117,-0.26061232,0.00017998,2]
[320706282,1711523516599,631.35715864,0.000179,2]
[320706297,1711523927676,505.08572688,0.000179,2]
[320706306,1711524343304,404.06858152,0.000179,2]
[320706481,1711524638270,-302.75399207,0.00017909,2]
[320706483,1711524638281,-441.18473769,0.00017909,2]
[320706948,1711524643264,-94.46401209,0.00017909,2]
[320706950,1711524643276,-192.20239395,0.0001791,2]
[320706952,1711524643287,-180.29988921,0.0001791,2]
[320706954,1711524643298,-453.48316393,0.0001791,2]
[320706956,1711524643309,-867.05054083,0.00017911,2]
[320709047,1711524709526,2102.7723882,0.00016985,2]
[320709048,1711524745978,323.2548652,0.000179,2]
[320709049,1711524832767,620.91903434,0.000179,2]
[320709050,1711524852554,1479.1991598,0.000179,2]
[320709051,1711524859817,250.0,0.00016998,2]
[320709052,1711524955624,231.6446412,0.00016997,2]
[320709074,1711525153928,258.60389216,0.000179,2]
[320709078,1711525566166,206.88311376,0.000179,2]
[320709083,1711525718071,-1889.80488692,0.00017962,2]
[320709084,1711525718100,-1479.1991598,0.00017963,2]
[320709085,1711525718128,-163.46120556,0.00017982,2]
[320709086,1711525718151,-300.0,0.00017991,2]
[320709087,1711525718173,-15058.08234301,0.00017992,2]
[320709088,1711525718198,-3290.09267447,0.00017996,2]
[320709089,1711525718382,-784.92032207,0.00017998,2]
[320709090,1711525718406,-417.42076257,0.00017998,2]
[320709091,1711525718427,-205.92108351,0.00017998,2]
[320709092,1711525718449,-897.71425996,0.00017998,2]
[320709093,1711525718474,-667.00954265,0.00017998,2]
[320709094,1711525718498,-199.65094339,0.00017999,2]
[320709095,1711525718522,-303.83176502,0.00017999,2]
[320709096,1711525718547,-310.63209833,0.00017999,2]
[320709097,1711525718570,-18932.64705126,0.00018,2]
[320709098,1711525718591,-7873.0,0.00018,2]
[320709171,1711525838303,-206.88311372,0.00018195,2]
[320709173,1711525838314,-206.88311372,0.00018489,2]
[320709175,1711525838324,-206.88311372,0.00018784,2]
[320709177,1711525838333,-478.41425047,0.00018999,2]
[320709386,1711525840400,-355.85267048,0.00018999,2]
[320709389,1711525840409,-1.60732952,0.00019,2]
[320709691,1711525843546,-29751.67072362,0.00019,2]
[320709693,1711525843555,-206.88311372,0.00019078,2]
[320709695,1711525843565,-153.0,0.000191,2]
[320709697,1711525843574,-153.0,0.000191,2]
[320709699,1711525843583,-153.0,0.000191,2]
[320709701,1711525843592,-153.0,0.000191,2]
[320709703,1711525843602,-153.0,0.000191,2]
[320709705,1711525843611,-153.0,0.000191,2]
[320709707,1711525843620,-153.0,0.000191,2]
[320709709,1711525843629,-153.0,0.000191,2]
[320709711,1711525843638,-154.2888307,0.000191,2]
[320709713,1711525843649,-306.2688417,0.000191,2]
[320709715,1711525843658,-153.0,0.000191,2]
[320709717,1711525843667,-153.0,0.000191,2]
[320709720,1711525843677,-153.0,0.000191,2]
[320709723,1711525843686,-153.0,0.000191,2]
[320709725,1711525843696,-153.0,0.000191,2]
[320709727,1711525843705,-153.2103675,0.000191,2]
[320709729,1711525843714,-153.0,0.000191,2]
[320709731,1711525843723,-153.0,0.000191,2]
[320709733,1711525843732,-153.0,0.00019149,2]
[320709735,1711525843741,-153.0,0.00019149,2]
[320709737,1711525843750,-153.0,0.00019149,2]
[320709740,1711525843768,-1633.08387512,0.00019171,2]
[320709742,1711525843780,-211.49486992,0.00019174,2]
[320709744,1711525843790,-225.24251735,0.00019174,2]
[320709746,1711525843800,-205.37769357,0.00019174,2]
[320709748,1711525843809,-160.87070723,0.00019174,2]
[320709750,1711525843819,-868.16863593,0.00019174,2]
[320709752,1711525843828,-2605.4070795,0.00019174,2]
[320709754,1711525843838,-3444.03044866,0.00019174,2]
[320709757,1711525843848,-620.81608877,0.00019174,2]
[320709759,1711525843857,-473.33186391,0.00019174,2]
[320709761,1711525843867,-1922.02642136,0.00019175,2]
[320709763,1711525843876,-155.40820273,0.00019175,2]
[320709765,1711525843886,-227.40311679,0.00019175,2]
[320709767,1711525843896,-155.28623251,0.00019176,2]
[320709769,1711525843905,-287.46979491,0.00019176,2]
[320709771,1711525843915,-852.41043106,0.00019176,2]
[320709773,1711525843924,-323.79347038,0.00019176,2]
[320709775,1711525843934,-157.30342708,0.00019176,2]
[320709777,1711525843943,-157.46249338,0.00019176,2]
[320709779,1711525843952,-436.81265876,0.00019177,2]
[320709781,1711525843962,-155.07576377,0.00019177,2]
[320709783,1711525843971,-688.91492824,0.00019177,2]
[320709785,1711525843981,-500.0,0.00019178,2]
[320709787,1711525843991,-500.0,0.00019178,2]
[320709789,1711525844000,-388.48704137,0.00019178,2]
[320709791,1711525844010,-500.0,0.00019178,2]
[320709793,1711525844019,-439.19790727,0.00019178,2]
[320709795,1711525844029,-500.0,0.00019178,2]
[320709797,1711525844039,-483.23075257,0.00019178,2]
[320709799,1711525844048,-500.0,0.00019178,2]
[320709801,1711525844057,-500.0,0.00019178,2]
[320709803,1711525844066,-496.26808458,0.00019178,2]
[320709805,1711525844076,-500.5462079,0.00019178,2]
[320709807,1711525844085,-500.0,0.00019178,2]
[320709809,1711525844094,-580.56346356,0.00019178,2]
[320709811,1711525844104,-500.0,0.00019178,2]
[320709813,1711525844113,-500.0,0.00019178,2]
[320709815,1711525844122,-500.0,0.00019178,2]
[320709817,1711525844132,-500.0,0.00019178,2]
[320709819,1711525844141,-500.0,0.00019178,2]
[320709821,1711525844154,-500.0,0.00019178,2]
[320709823,1711525844164,-500.0,0.00019178,2]
[320709825,1711525844173,-500.0,0.00019178,2]
[320709827,1711525844183,-310.18827127,0.00019178,2]
[320709830,1711525844193,-500.0,0.00019178,2]
[320709832,1711525844202,-475.91494966,0.00019178,2]
[320709834,1711525844212,-500.0,0.00019178,2]
[320709835,1711525844222,-500.0,0.00019178,2]
[320709837,1711525844233,-315.49099161,0.00019178,2]
[320709839,1711525844243,-500.0,0.00019178,2]
[320709841,1711525844252,-660.12,0.00019178,2]
[320709843,1711525844261,-155.39539616,0.00019178,2]
[320709846,1711525844272,-500.0,0.00019178,2]
[320709847,1711525844283,-500.0,0.00019178,2]
[320709849,1711525844293,-500.0,0.00019178,2]
[320709852,1711525844302,-500.0,0.00019178,2]
[320709854,1711525844313,-500.0,0.00019178,2]
[320709856,1711525844322,-500.0,0.00019178,2]
[320709858,1711525844332,-500.0,0.00019178,2]
[320709860,1711525844342,-500.0,0.00019178,2]
[320709862,1711525844351,-500.0,0.00019178,2]
[320709864,1711525844360,-500.0,0.00019178,2]
[320709866,1711525844369,-500.0,0.00019178,2]
[320709868,1711525844378,-500.0,0.00019178,2]
[320709870,1711525844387,-297.58142227,0.00019178,2]
[320709872,1711525844397,-1554.49,0.00019178,2]
[320709874,1711525844407,-500.0,0.00019178,2]
[320709876,1711525844416,-500.44928913,0.00019178,2]
[320709878,1711525844425,-500.0,0.00019178,2]
[320709880,1711525844435,-500.0,0.00019178,2]
[320709882,1711525844445,-500.0,0.00019178,2]
[320709883,1711525844454,-280.89557359,0.00019178,2]
[320709886,1711525844463,-500.0,0.00019178,2]
[320709887,1711525844473,-500.0,0.00019178,2]
[320709890,1711525844484,-500.0,0.00019178,2]
[320709892,1711525844494,-500.0,0.00019178,2]
[320709894,1711525844503,-293.46389962,0.00019178,2]
[320709896,1711525844512,-1939.4,0.00019178,2]
[320709898,1711525844522,-500.0,0.00019178,2]
[320709900,1711525844531,-500.0,0.00019178,2]
[320709902,1711525844541,-500.0,0.00019178,2]
[320709904,1711525844551,-500.0,0.00019178,2]
[320709906,1711525844560,-500.0,0.00019178,2]
[320709908,1711525844570,-500.0,0.00019178,2]
[320709910,1711525844580,-500.0,0.00019178,2]
[320709912,1711525844589,-500.10275586,0.00019178,2]
[320709914,1711525844600,-500.0,0.00019178,2]
[320709916,1711525844610,-272.96634388,0.00019178,2]
[320709918,1711525844619,-500.0,0.00019178,2]
[320709920,1711525844628,-500.0,0.00019178,2]
[320709922,1711525844637,-500.0,0.00019178,2]
[320709924,1711525844648,-674.34,0.00019178,2]
[320709926,1711525844657,-500.0,0.00019178,2]
[320709928,1711525844667,-500.0,0.00019178,2]
[320709930,1711525844676,-503.18160699,0.00019178,2]
[320709932,1711525844687,-500.0,0.00019178,2]
[320709934,1711525844697,-296.87108571,0.00019178,2]
[320709936,1711525844706,-500.8216256,0.00019178,2]
[320709938,1711525844716,-500.0,0.00019178,2]
[320709940,1711525844725,-500.0,0.00019178,2]
[320709942,1711525844734,-152.3317469,0.00019178,2]
[320709944,1711525844744,-500.0,0.00019178,2]
[320709946,1711525844753,-500.0,0.00019178,2]
[320709948,1711525844763,-500.0,0.00019178,2]
[320709950,1711525844772,-500.0,0.00019178,2]
[320709952,1711525844781,-500.0,0.00019178,2]
[320709954,1711525844790,-500.80494089,0.00019178,2]
[320709956,1711525844800,-500.0,0.00019178,2]
[320709959,1711525844810,-500.8158679,0.00019178,2]
[320709961,1711525844819,-500.0,0.00019178,2]
[320709963,1711525844828,-244.6178902,0.00019178,2]
[320709965,1711525844837,-500.0,0.00019178,2]
[320709967,1711525844846,-500.51345091,0.00019178,2]
[320709969,1711525844854,-500.0,0.00019178,2]
[320709971,1711525844864,-500.0,0.00019178,2]
[320709973,1711525844873,-500.0,0.00019178,2]
[320709975,1711525844882,-500.0,0.00019178,2]
[320709977,1711525844891,-500.05712489,0.00019178,2]
[320709979,1711525844903,-309.9070279,0.00019178,2]
[320709981,1711525844912,-520.91,0.00019178,2]
[320709983,1711525844922,-682.83,0.00019178,2]
[320709985,1711525844931,-500.52440269,0.00019178,2]
[320709987,1711525844941,-500.0,0.00019178,2]
[320709989,1711525844950,-500.0,0.00019178,2]
[320709991,1711525844959,-500.91053775,0.00019178,2]
[320709993,1711525844969,-500.0,0.00019178,2]
[320709995,1711525844978,-500.0,0.00019178,2]
[320709997,1711525844987,-500.0,0.00019178,2]
[320709999,1711525844996,-500.33784866,0.00019178,2]
[320710001,1711525845006,-1099.85,0.00019178,2]
[320710003,1711525845015,-500.0,0.00019178,2]
[320710005,1711525845025,-826.08,0.00019178,2]
[320710023,1711525845179,-583.96130448,0.00019178,2]
[320710025,1711525845188,-500.0,0.00019178,2]
[320710027,1711525845198,-555.51496434,0.00019178,2]
[320710029,1711525845207,-500.35621523,0.00019178,2]
[320710031,1711525845217,-646.65,0.00019178,2]
[320710033,1711525845227,-3852.88,0.00019178,2]
[320710035,1711525845238,-500.0,0.00019178,2]
[320710037,1711525845248,-500.0,0.00019178,2]
[320710039,1711525845258,-500.0,0.00019178,2]
[320710041,1711525845267,-500.0,0.00019178,2]
[320710043,1711525845277,-500.0,0.00019178,2]
[320710045,1711525845286,-991.98,0.00019178,2]
[320710047,1711525845296,-638.34,0.00019178,2]
[320710049,1711525845307,-500.0,0.00019178,2]
[320710051,1711525845319,-500.52613495,0.00019178,2]
[320710053,1711525845328,-500.0,0.00019178,2]
[320710055,1711525845337,-1917.83,0.00019178,2]
[320710057,1711525845346,-500.0,0.00019178,2]
[320710059,1711525845356,-500.0,0.00019178,2]
[320710061,1711525845365,-500.0,0.00019178,2]
[320710064,1711525845375,-1050.95,0.00019178,2]
[320710066,1711525845384,-500.0,0.00019178,2]
[320710067,1711525845393,-500.0,0.00019178,2]
[320710069,1711525845404,-500.0,0.00019178,2]
[320710070,1711525845414,-2177.72,0.00019178,2]
[320710071,1711525845423,-1573.35,0.00019178,2]
[320710072,1711525845433,-151.32,0.00019178,2]
[320710073,1711525845442,-500.0,0.00019178,2]
[320710074,1711525845452,-500.0,0.00019178,2]
[320710075,1711525845462,-500.0,0.00019178,2]
[320710076,1711525845471,-501.1652361,0.00019178,2]
[320710077,1711525845480,-25387.59,0.00019178,2]
[320710078,1711525845490,-500.0,0.00019178,2]
[320710079,1711525845500,-500.0,0.00019178,2]
[320710080,1711525845509,-500.0,0.00019178,2]
[320710081,1711525845519,-500.0,0.00019178,2]
[320710082,1711525845530,-500.0,0.00019178,2]
[320710083,1711525845540,-1725.85,0.00019178,2]
[320710084,1711525845549,-500.0,0.00019178,2]
[320710086,1711525845559,-21596.81,0.00019178,2]
[320710087,1711525845568,-500.0,0.00019178,2]
[320710089,1711525845578,-932.5,0.00019178,2]
[320710092,1711525845588,-500.0,0.00019178,2]
[320710093,1711525845597,-500.0,0.00019178,2]
[320710095,1711525845607,-551.69,0.00019178,2]
[320710097,1711525845616,-500.0,0.00019178,2]
[320710099,1711525845625,-500.0,0.00019178,2]
[320710101,1711525845635,-500.7858795,0.00019178,2]
[320710103,1711525845645,-500.0,0.00019178,2]
[320710105,1711525845655,-3931.22,0.00019178,2]
[320710108,1711525845664,-4880.59,0.00019178,2]
[320710109,1711525845674,-618.32,0.00019178,2]
[320710111,1711525845683,-500.0,0.00019178,2]
[320710113,1711525845693,-1545.99,0.00019178,2]
[320710116,1711525845702,-501.51617687,0.00019178,2]
[320710118,1711525845712,-3991.66,0.00019178,2]
[320710120,1711525845722,-500.72167393,0.00019178,2]
[320710122,1711525845733,-500.0,0.00019178,2]
[320710124,1711525845742,-500.0,0.00019178,2]